{"text_format":"1","workbook":"xlsx","n_sheets":1,"sheets":["Mailer-Marksheet"],"not_rendered":{"charts":0,"images":5,"macros":1,"external_links":0,"defined_names":6,"comments":0,"pivot_tables":0},"unopened":[],"bounds":{"document_bytes":16777216,"sheet_cells":100000,"rows_first":2000,"rows_last":500,"rows_between":2000,"halvings":0,"cell_chars":16384,"cell_head_chars":4096},"cells_cut":0,"cells_raw":0,"read":"whole","date_system":"1900"}

{"sheet":"Mailer-Marksheet","index":0,"n_rows":22,"n_cols":8,"rows_kept":22,"cut":false,"hidden":false,"merged":[[5,4,5,8],[6,4,6,8],[7,4,7,8],[2,4,2,8],[3,4,3,8],[4,4,4,8]]}
[]
[]
[null,null,null,"Enter Mailer Title",{"$f":"\"IMP : Result for \" &strStandard & \" Standard \" & strExamName& \" Examinations\"","v":"IMP : Result for XII Standard Quarterly Examinations"}]
[null,null,null,"Enter Standard","XII"]
[null,null,null,"Enter Exam Name","Quarterly"]
[null,null,null,"To","Info@learnexcelmacro.com"]
[null,null,null,"CC","Info@learnexcelmacro.com"]
[null,null,null,"Bcc","Info@learnexcelmacro.com"]
[]
[]
[]
[null,"S.No","Student Name","Register No","Mark 1","Mark 2","Total","Status"]
[null,1,"Name 1","XXYYYZZ01",60,60,{"$f":"E13+F13","v":120},{"$f":"IF(E13>40,IF(F13>40,\"PASS\",\"FAIL\"),\"FAIL\")","v":"PASS"}]
[null,2,"Name 2","XXYYYZZ02",40,60,{"$f":"E14+F14","v":100},{"$f":"IF(E14>40,IF(F14>40,\"PASS\",\"FAIL\"),\"FAIL\")","v":"FAIL"}]
[null,3,"Name 3","XXYYYZZ03",52,65,117,"PASS"]
[null,4,"Name 4","XXYYYZZ04",70,80,150,"PASS"]
[null,5,"Name 5","XXYYYZZ05",30,50,80,"FAIL"]
[null,6,"Name 6","XXYYYZZ06",50,30,80,"FAIL"]
[null,7,"Name 7","XXYYYZZ07",80,90,170,"PASS"]
[null,8,"Name 8","XXYYYZZ08",99,100,199,"PASS"]
[null,9,"Name 9","XXYYYZZ09",100,100,200,"PASS"]
[null,10,"Name 10","XXYYYZZ10",90,50,140,"PASS"]